[Event "Live Chess"]
[Site "Chess.com"]
[Date "2024.06.02"]
[Round "-"]
[White "AndrewBak1"]
[Black "grillage"]
[Result "1-0"]
[WhiteElo "1885"]
[BlackElo "1842"]
[TimeControl "300"]
[EndTime "16:32:40 PDT"]
[Termination "AndrewBak1 won by resignation"]

1. e4 {[%clk 0:04:56.2]} 1... d5 {[%clk 0:04:58.6]} 2. exd5 {[%clk 0:04:55.2]}
2... Qxd5 {[%clk 0:04:58.1]} 3. d3 {[%clk 0:04:54.7]} 3... Nf6 {[%clk
0:04:54.6]} 4. Nf3 {[%clk 0:04:54]} 4... Bg4 {[%clk 0:04:53.4]} 5. Be2 {[%clk
0:04:52.3]} 5... e6 {[%clk 0:04:51.8]} 6. Nc3 {[%clk 0:04:51.5]} 6... Qd8 {[%clk
0:04:50.4]} 7. O-O {[%clk 0:04:49.2]} 7... c6 {[%clk 0:04:48.2]} 8. Ne5 {[%clk
0:04:48]} 8... Bxe2 {[%clk 0:04:46.4]} 9. Qxe2 {[%clk 0:04:47.9]} 9... Nbd7
{[%clk 0:04:45.1]} 10. Bf4 {[%clk 0:04:45.2]} 10... Nxe5 {[%clk 0:04:43.6]} 11.
Bxe5 {[%clk 0:04:45.1]} 11... Bd6 {[%clk 0:04:42.5]} 12. Rfe1 {[%clk 0:04:43.1]}
12... Bxe5 {[%clk 0:04:40.5]} 13. Qxe5 {[%clk 0:04:43]} 13... O-O {[%clk
0:04:37.8]} 14. Ne4 {[%clk 0:04:41]} 14... Nxe4 {[%clk 0:04:35.7]} 15. Rxe4
{[%clk 0:04:40.9]} 15... Qd5 {[%clk 0:04:31.6]} 16. Qg3 {[%clk 0:04:33.7]} 16...
Rfd8 {[%clk 0:04:20.3]} 17. Rg4 {[%clk 0:04:26.9]} 17... g6 {[%clk 0:04:19]} 18.
h4 {[%clk 0:04:24.5]} 18... Qd6 {[%clk 0:04:17.4]} 19. Qh3 {[%clk 0:04:21.1]}
19... h5 {[%clk 0:04:15.4]} 20. Re4 {[%clk 0:04:13.3]} 20... Qd5 {[%clk
0:04:06.1]} 21. a3 {[%clk 0:04:00.2]} 21... Qb5 {[%clk 0:04:02.1]} 22. Rb4
{[%clk 0:03:56.2]} 22... Qc5 {[%clk 0:03:57.4]} 23. Rxb7 {[%clk 0:03:47.3]}
23... Qxc2 {[%clk 0:03:55.8]} 24. Qf3 {[%clk 0:03:41.8]} 24... Rf8 {[%clk
0:03:53.3]} 25. Qe3 {[%clk 0:03:31.3]} 25... a5 {[%clk 0:03:45.1]} 26. Rc1
{[%clk 0:03:28.9]} 26... Qa4 {[%clk 0:03:39.3]} 27. Qe4 {[%clk 0:03:16.8]} 27...
Qxe4 {[%clk 0:03:34.5]} 28. dxe4 {[%clk 0:03:16.7]} 28... Rfd8 {[%clk
0:03:32.2]} 29. Rxc6 {[%clk 0:03:12.1]} 29... Rd1+ {[%clk 0:03:23.4]} 30. Kh2
{[%clk 0:03:10.4]} 30... Rd2 {[%clk 0:03:22.8]} 31. f3 {[%clk 0:03:08.9]} 31...
Rad8 {[%clk 0:03:15.3]} 32. Rcc7 {[%clk 0:03:06.3]} 32... Rf8 {[%clk 0:03:13.1]}
33. Rc5 {[%clk 0:03:02.1]} 33... Ra8 {[%clk 0:03:07.3]} 34. Rbb5 {[%clk
0:02:53.1]} 34... a4 {[%clk 0:03:05.9]} 35. Rb7 {[%clk 0:02:45]} 35... Re2
{[%clk 0:03:01.2]} 36. Kg3 {[%clk 0:02:42.1]} 36... Rd8 {[%clk 0:02:58.9]} 37.
Rcc7 {[%clk 0:02:39.5]} 37... Rf8 {[%clk 0:02:51]} 38. Rc4 {[%clk 0:02:11.4]}
38... Rd8 {[%clk 0:02:48.7]} 39. Rcc7 {[%clk 0:02:07.7]} 39... Rf8 {[%clk
0:02:47.3]} 40. Ra7 {[%clk 0:01:59.6]} 40... Rxb2 {[%clk 0:02:42.6]} 41. Rxa4
{[%clk 0:01:58.3]} 41... Ra2 {[%clk 0:02:38.6]} 42. Raa7 {[%clk 0:01:57]} 42...
Kg7 {[%clk 0:02:32.2]} 43. a4 {[%clk 0:01:55.7]} 43... Kf6 {[%clk 0:02:31]} 44.
f4 {[%clk 0:01:50.3]} 44... Ra3+ {[%clk 0:02:28.6]} 45. Kf2 {[%clk 0:01:49.1]}
45... Ra2+ {[%clk 0:02:27.3]} 46. Kf3 {[%clk 0:01:46.7]} 46... Ra3+ {[%clk
0:02:26.3]} 47. Ke2 {[%clk 0:01:46.2]} 47... Ra2+ {[%clk 0:02:25.6]} 48. Kd3
{[%clk 0:01:44]} 48... Rxg2 {[%clk 0:02:23.9]} 49. e5+ {[%clk 0:01:43]} 49...
Kg7 {[%clk 0:02:19.6]} 50. a5 {[%clk 0:01:40.3]} 50... Rg4 {[%clk 0:02:15.9]}
51. Ke4 {[%clk 0:01:39]} 51... Rxh4 {[%clk 0:02:12.1]} 52. a6 {[%clk 0:01:37.1]}
52... Rh3 {[%clk 0:02:11.6]} 53. Rc6 {[%clk 0:01:35.1]} 53... Ra3 {[%clk
0:02:06.4]} 54. Rxe6 {[%clk 0:01:31.9]} 54... h4 {[%clk 0:02:01.3]} 55. Rb6
{[%clk 0:01:25.7]} 55... h3 {[%clk 0:02:00.6]} 56. e6 {[%clk 0:01:21.4]} 56...
h2 {[%clk 0:01:47.6]} 57. Rb1 {[%clk 0:01:18.6]} 57... Rh3 {[%clk 0:01:44.8]}
58. Rh1 {[%clk 0:01:12.7]} 58... Kf6 {[%clk 0:01:42.3]} 59. Rxf7+ {[%clk
0:01:10.3]} 59... Rxf7 {[%clk 0:01:41]} 60. exf7 {[%clk 0:01:09.4]} 60... Kxf7
{[%clk 0:01:40.3]} 61. a7 {[%clk 0:01:03.4]} 61... Ra3 {[%clk 0:01:39.1]} 62.
Rxh2 {[%clk 0:01:02.5]} 62... Rxa7 {[%clk 0:01:38.3]} 63. Rh7+ {[%clk
0:01:01.7]} 1-0

[Event "Live Chess"]
[Site "Chess.com"]
[Date "2024.06.02"]
[Round "-"]
[White "TheSmoulderingMaster"]
[Black "GEMdzq"]
[Result "0-1"]
[WhiteElo "1747"]
[BlackElo "2299"]
[TimeControl "300"]
[EndTime "16:32:46 PDT"]
[Termination "GEMdzq won by resignation"]

1. e4 {[%clk 0:04:58]} 1... Nf6 {[%clk 0:04:58.1]} 2. e5 {[%clk 0:04:56.7]} 2...
Nd5 {[%clk 0:04:56.8]} 3. d4 {[%clk 0:04:55.8]} 3... d6 {[%clk 0:04:56.2]} 4. c4
{[%clk 0:04:55]} 4... Nb6 {[%clk 0:04:55.2]} 5. f4 {[%clk 0:04:54.1]} 5... g6
{[%clk 0:04:54.6]} 6. Nf3 {[%clk 0:04:52.6]} 6... Bg7 {[%clk 0:04:54.1]} 7. Be3
{[%clk 0:04:51.3]} 7... O-O {[%clk 0:04:53.5]} 8. Nc3 {[%clk 0:04:49.8]} 8...
dxe5 {[%clk 0:04:53]} 9. fxe5 {[%clk 0:04:48.4]} 9... Nc6 {[%clk 0:04:49.6]} 10.
Qd2 {[%clk 0:04:46.9]} 10... Bg4 {[%clk 0:04:44.2]} 11. Be2 {[%clk 0:04:45.2]}
11... Bxf3 {[%clk 0:04:41.3]} 12. Bxf3 {[%clk 0:04:43.8]} 12... Nxc4 {[%clk
0:04:40]} 13. Qd3 {[%clk 0:04:41.1]} 13... Nxe3 {[%clk 0:04:39.2]} 14. Qxe3
{[%clk 0:04:40.3]} 14... Nb4 {[%clk 0:04:38.3]} 15. O-O {[%clk 0:04:37.5]} 15...
c6 {[%clk 0:04:37.8]} 16. Qg5 {[%clk 0:04:28.6]} 16... Qxd4+ {[%clk 0:04:35.1]}
17. Kh1 {[%clk 0:04:25.5]} 17... Qxe5 {[%clk 0:04:32.7]} 18. Qg4 {[%clk
0:04:20.7]} 18... Nc2 {[%clk 0:04:28]} 19. Rac1 {[%clk 0:04:17.4]} 19... Ne3
{[%clk 0:04:26.4]} 0-1

[Event "Live Chess"]
[Site "Chess.com"]
[Date "2024.06.02"]
[Round "-"]
[White "booktrunk"]
[Black "educatedlad"]
[Result "1/2-1/2"]
[WhiteElo "1486"]
[BlackElo "1712"]
[TimeControl "300"]
[EndTime "16:33:13 PDT"]
[Termination "Game drawn by repetition"]

1. d4 {[%clk 0:04:45.9]} 1... Nf6 {[%clk 0:04:59.9]} 2. Nc3 {[%clk 0:04:41]}
2... d5 {[%clk 0:04:58]} 3. Bf4 {[%clk 0:04:38.4]} 3... g6 {[%clk 0:04:57]} 4.
e3 {[%clk 0:04:35.7]} 4... Bg7 {[%clk 0:04:54.9]} 5. Nb5 {[%clk 0:04:31.5]} 5...
Na6 {[%clk 0:04:41]} 6. Nf3 {[%clk 0:04:29]} 6... c6 {[%clk 0:04:38.1]} 7. Nc3
{[%clk 0:04:27.4]} 7... Nc7 {[%clk 0:04:37.1]} 8. Qd2 {[%clk 0:04:18.3]} 8...
Nh5 {[%clk 0:04:32.5]} 9. Bg3 {[%clk 0:04:12.1]} 9... Nxg3 {[%clk 0:04:31]} 10.
fxg3 {[%clk 0:04:10.8]} 10... Bg4 {[%clk 0:04:21.6]} 11. h3 {[%clk 0:03:42.7]}
11... Bxf3 {[%clk 0:04:18.3]} 12. gxf3 {[%clk 0:03:41.6]} 12... Qd6 {[%clk
0:04:17.5]} 13. f4 {[%clk 0:03:38.9]} 13... O-O {[%clk 0:04:12.2]} 14. Bg2
{[%clk 0:03:32.7]} 14... Rae8 {[%clk 0:03:55.3]} 15. O-O-O {[%clk 0:03:20.9]}
15... b5 {[%clk 0:03:44.7]} 16. Rhe1 {[%clk 0:03:18.9]} 16... a5 {[%clk
0:03:43.7]} 17. Nb1 {[%clk 0:03:17.2]} 17... Na6 {[%clk 0:03:37.4]} 18. c3
{[%clk 0:03:05.9]} 18... b4 {[%clk 0:03:33]} 19. Qc2 {[%clk 0:03:03.7]} 19...
bxc3 {[%clk 0:03:31.4]} 20. Nxc3 {[%clk 0:03:02.4]} 20... Nb4 {[%clk 0:03:29.9]}
21. Qa4 {[%clk 0:02:57.2]} 21... e6 {[%clk 0:03:23.9]} 22. a3 {[%clk 0:02:55.9]}
22... c5 {[%clk 0:03:17.8]} 23. axb4 {[%clk 0:02:51.2]} 23... cxb4 {[%clk
0:03:16.8]} 24. Nb5 {[%clk 0:02:46.3]} 24... Rc8+ {[%clk 0:03:09.3]} 25. Kb1
{[%clk 0:02:45.3]} 25... Qa6 {[%clk 0:03:01.6]} 26. Bf1 {[%clk 0:02:35]} 26...
Qb6 {[%clk 0:02:58.7]} 27. b3 {[%clk 0:02:29.5]} 27... Rc6 {[%clk 0:02:50.7]}
28. Rc1 {[%clk 0:02:28]} 28... Rfc8 {[%clk 0:02:48.2]} 29. Rxc6 {[%clk
0:02:26.4]} 29... Rxc6 {[%clk 0:02:48.1]} 30. Rc1 {[%clk 0:02:24.5]} 30... Rxc1+
{[%clk 0:02:46.4]} 31. Kxc1 {[%clk 0:02:23.6]} 31... Qc6+ {[%clk 0:02:45.9]} 32.
Kd2 {[%clk 0:02:18]} 32... Qd7 {[%clk 0:02:37.3]} 33. Qxa5 {[%clk 0:02:13.3]}
33... Bf8 {[%clk 0:02:32.8]} 34. Qc7 {[%clk 0:02:04.9]} 34... Qe8 {[%clk
0:02:25.7]} 35. Nd6 {[%clk 0:02:02.2]} 35... Bxd6 {[%clk 0:02:21.9]} 36. Qxd6
{[%clk 0:02:00.6]} 36... Qa8 {[%clk 0:02:13.2]} 37. Qc7 {[%clk 0:01:47.9]} 37...
Qa2+ {[%clk 0:02:10.5]} 38. Qc2 {[%clk 0:01:46.3]} 38... Qa1 {[%clk 0:02:06.1]}
39. Ke2 {[%clk 0:01:38.8]} 39... h5 {[%clk 0:01:59.3]} 40. Kf2 {[%clk
0:01:36.3]} 40... Qa7 {[%clk 0:01:48.3]} 41. Qd2 {[%clk 0:01:28.7]} 41... Qa3
{[%clk 0:01:43.5]} 42. Qc2 {[%clk 0:01:13.2]} 42... Qa7 {[%clk 0:01:41.4]} 43.
Bd3 {[%clk 0:01:11.1]} 43... Qa1 {[%clk 0:01:37.7]} 44. Kg2 {[%clk 0:01:06.2]}
44... Qe1 {[%clk 0:01:33.1]} 45. Qe2 {[%clk 0:01:04]} 45... Qc3 {[%clk
0:01:30.9]} 46. Bc2 {[%clk 0:01:01.1]} 46... Kg7 {[%clk 0:01:27]} 47. h4 {[%clk
0:00:57.5]} 47... f5 {[%clk 0:01:19.3]} 48. Kh3 {[%clk 0:00:54.2]} 48... Qa1
{[%clk 0:01:15]} 49. Qg2 {[%clk 0:00:46.1]} 49... Qe1 {[%clk 0:01:09.3]} 50. Bb1
{[%clk 0:00:31.6]} 50... Qxb1 {[%clk 0:01:05.4]} 51. Kh2 {[%clk 0:00:31.5]}
51... Qxb3 {[%clk 0:01:03.3]} 52. Qd2 {[%clk 0:00:30.4]} 52... Qc3 {[%clk
0:00:58.8]} 53. Qd1 {[%clk 0:00:27.3]} 53... b3 {[%clk 0:00:57.5]} 54. Kh3
{[%clk 0:00:22.7]} 54... Qc2 {[%clk 0:00:56.2]} 55. Qa1 {[%clk 0:00:20.2]} 55...
b2 {[%clk 0:00:43.7]} 56. Qa7+ {[%clk 0:00:18.6]} 56... Kf6 {[%clk 0:00:42.6]}
57. Qd7 {[%clk 0:00:16]} 57... b1=Q {[%clk 0:00:32.1]} 58. Qd8+ {[%clk 0:00:15]}
58... Kf7 {[%clk 0:00:31.3]} 59. Qd7+ {[%clk 0:00:14.3]} 59... Kf8 {[%clk
0:00:29.2]} 60. Qd8+ {[%clk 0:00:13.3]} 60... Kf7 {[%clk 0:00:28.1]} 61. Qd7+
{[%clk 0:00:12.5]} 61... Kg8 {[%clk 0:00:26.7]} 62. Qe8+ {[%clk 0:00:11.4]}
62... Kh7 {[%clk 0:00:25.8]} 63. Qf7+ {[%clk 0:00:10.2]} 63... Kh8 {[%clk
0:00:25]} 64. Qf8+ {[%clk 0:00:08.9]} 64... Kh7 {[%clk 0:00:24.2]} 65. Qf7+
{[%clk 0:00:08.1]} 65... Kh8 {[%clk 0:00:23.2]} 66. Qf8+ {[%clk 0:00:07.4]}
66... Kh7 {[%clk 0:00:22.3]} 67. Qf7+ {[%clk 0:00:07.1]} 1/2-1/2

[Event "Live Chess"]
[Site "Chess.com"]
[Date "2024.06.02"]
[Round "-"]
[White "koekoekoe"]
[Black "KwikPhoenix"]
[Result "0-1"]
[WhiteElo "1964"]
[BlackElo "2446"]
[TimeControl "300"]
[EndTime "16:33:22 PDT"]
[Termination "KwikPhoenix won by resignation"]

1. d4 {[%clk 0:04:59.7]} 1... f5 {[%clk 0:04:56.7]} 2. Bf4 {[%clk 0:04:59.1]}
2... e6 {[%clk 0:04:55.4]} 3. e3 {[%clk 0:04:58.7]} 3... Nf6 {[%clk 0:04:55.3]}
4. c4 {[%clk 0:04:58.1]} 4... d6 {[%clk 0:04:54.7]} 5. Nc3 {[%clk 0:04:57.7]}
5... Be7 {[%clk 0:04:54.4]} 6. Nf3 {[%clk 0:04:57.2]} 6... O-O {[%clk 0:04:54]}
7. h3 {[%clk 0:04:56.6]} 7... a5 {[%clk 0:04:51.5]} 8. Be2 {[%clk 0:04:56.1]}
8... Qe8 {[%clk 0:04:48.8]} 9. O-O {[%clk 0:04:55.7]} 9... Bd7 {[%clk
0:04:43.1]} 10. Rc1 {[%clk 0:04:53.1]} 10... Na6 {[%clk 0:04:38.2]} 11. a3
{[%clk 0:04:43.3]} 11... h6 {[%clk 0:04:37.5]} 12. Qb3 {[%clk 0:04:37.4]} 12...
Rb8 {[%clk 0:04:34.5]} 13. Nb5 {[%clk 0:04:22.6]} 13... Ne4 {[%clk 0:04:17.3]}
14. Bd3 {[%clk 0:04:13.3]} 14... g5 {[%clk 0:04:11.9]} 15. Bh2 {[%clk
0:04:11.2]} 15... Qh5 {[%clk 0:04:09.8]} 16. Bxe4 {[%clk 0:04:04.5]} 16... fxe4
{[%clk 0:04:08.6]} 17. Nd2 {[%clk 0:04:01.4]} 17... Qg6 {[%clk 0:04:02.7]} 18.
Qc2 {[%clk 0:03:50.1]} 18... d5 {[%clk 0:04:01.9]} 19. cxd5 {[%clk 0:03:48.1]}
19... Bxb5 {[%clk 0:04:01.3]} 20. Rfd1 {[%clk 0:03:36.7]} 20... exd5 {[%clk
0:03:57.4]} 21. Qb3 {[%clk 0:03:26.9]} 21... Bc6 {[%clk 0:03:52.6]} 22. Be5
{[%clk 0:03:20.1]} 22... Bd6 {[%clk 0:03:51.2]} 23. Bxd6 {[%clk 0:03:13.6]}
23... Qxd6 {[%clk 0:03:51.1]} 24. Nxe4 {[%clk 0:03:12.2]} 24... Qd7 {[%clk
0:03:44.2]} 25. Ng3 {[%clk 0:02:57.3]} 25... Ba4 {[%clk 0:03:41]} 26. Qd3 {[%clk
0:02:52.5]} 26... Bxd1 {[%clk 0:03:39.1]} 27. Rxd1 {[%clk 0:02:44.4]} 27... Qf7
{[%clk 0:03:38.6]} 28. Rd2 {[%clk 0:02:38.8]} 28... Rbd8 {[%clk 0:03:38.1]} 29.
Qb5 {[%clk 0:02:29.5]} 29... Rd6 {[%clk 0:03:36.3]} 30. Qxb7 {[%clk 0:02:26.4]}
30... Rb6 {[%clk 0:03:35.7]} 31. Qa7 {[%clk 0:02:22.9]} 31... Rc8 {[%clk
0:03:24.8]} 32. Rc2 {[%clk 0:02:14]} 32... Qe8 {[%clk 0:03:16.4]} 33. Nf5 {[%clk
0:02:02.5]} 33... Ra8 {[%clk 0:03:12.6]} 34. Rxc7 {[%clk 0:01:51]} 34... Rxa7
{[%clk 0:03:10]} 35. Rxa7 {[%clk 0:01:50.9]} 35... Re6 {[%clk 0:02:48.1]} 36.
Rg7+ {[%clk 0:01:34.3]} 36... Kf8 {[%clk 0:02:43.5]} 37. Rh7 {[%clk 0:01:33.4]}
37... Rf6 {[%clk 0:02:40.2]} 38. Rh8+ {[%clk 0:01:30.7]} 38... Kf7 {[%clk
0:02:39.7]} 39. Rxe8 {[%clk 0:01:28.3]} 39... Kxe8 {[%clk 0:02:39.6]} 40. Ng7+
{[%clk 0:01:25.8]} 40... Kf7 {[%clk 0:02:38.3]} 41. Nh5 {[%clk 0:01:25.7]} 41...
Rb6 {[%clk 0:02:37]} 42. Ng3 {[%clk 0:01:24.2]} 42... Rxb2 {[%clk 0:02:36.5]}
43. Nf5 {[%clk 0:01:24.1]} 43... h5 {[%clk 0:02:33.9]} 44. Nd6+ {[%clk
0:01:23.1]} 44... Ke6 {[%clk 0:02:30.5]} 45. Nb7 {[%clk 0:01:22.7]} 45... Rxb7
{[%clk 0:02:29.5]} 0-1

[Event "Live Chess"]
[Site "Chess.com"]
[Date "2024.06.02"]
[Round "-"]
[White "Sir_Sigmund"]
[Black "nigelst"]
[Result "1-0"]
[WhiteElo "1854"]
[BlackElo "1713"]
[TimeControl "300"]
[EndTime "16:33:47 PDT"]
[Termination "Sir_Sigmund won by resignation"]

1. e4 {[%clk 0:04:58]} 1... c6 {[%clk 0:04:56.5]} 2. Be2 {[%clk 0:04:55.1]} 2...
d5 {[%clk 0:04:55.3]} 3. d3 {[%clk 0:04:54.8]} 3... dxe4 {[%clk 0:04:53.4]} 4.
dxe4 {[%clk 0:04:54.7]} 4... Qxd1+ {[%clk 0:04:51.5]} 5. Bxd1 {[%clk 0:04:54.6]}
5... e5 {[%clk 0:04:49.7]} 6. Nf3 {[%clk 0:04:52.2]} 6... Nd7 {[%clk 0:04:42.9]}
7. Be3 {[%clk 0:04:45.2]} 7... Ngf6 {[%clk 0:04:40.8]} 8. Nbd2 {[%clk
0:04:43.4]} 8... Bd6 {[%clk 0:04:37.4]} 9. Be2 {[%clk 0:04:38.5]} 9... O-O
{[%clk 0:04:31.9]} 10. O-O-O {[%clk 0:04:37.9]} 10... Ng4 {[%clk 0:04:30.4]} 11.
Nc4 {[%clk 0:04:23]} 11... Bc7 {[%clk 0:04:22]} 12. Rd3 {[%clk 0:04:13.3]} 12...
Nxe3 {[%clk 0:04:20.2]} 13. Rxe3 {[%clk 0:04:10.8]} 13... Bb6 {[%clk 0:04:18.4]}
14. Nxb6 {[%clk 0:04:06.9]} 14... axb6 {[%clk 0:04:15.9]} 15. a3 {[%clk
0:04:05.9]} 15... Nc5 {[%clk 0:04:09.7]} 16. Bc4 {[%clk 0:04:04]} 16... Re8
{[%clk 0:03:51.4]} 17. Rd1 {[%clk 0:03:55.3]} 17... Be6 {[%clk 0:03:49]} 18.
Nxe5 {[%clk 0:03:44.9]} 18... Bxc4 {[%clk 0:03:44.9]} 19. Nxc4 {[%clk
0:03:43.8]} 19... Rxe4 {[%clk 0:03:39.9]} 20. Rxe4 {[%clk 0:03:39.3]} 20... Nxe4
{[%clk 0:03:38.3]} 21. f3 {[%clk 0:03:33.1]} 21... Nc5 {[%clk 0:03:34.7]} 22.
Re1 {[%clk 0:03:09.2]} 22... b5 {[%clk 0:03:24.9]} 23. Nd6 {[%clk 0:03:07.9]}
23... g6 {[%clk 0:03:08.9]} 24. Re7 {[%clk 0:03:02.6]} 24... b6 {[%clk
0:02:45.8]} 25. Kd2 {[%clk 0:02:49.9]} 25... Rd8 {[%clk 0:02:37.9]} 26. Re8+
{[%clk 0:02:48.2]} 26... Rxe8 {[%clk 0:02:32.1]} 27. Nxe8 {[%clk 0:02:48.1]}
27... Kf8 {[%clk 0:02:29.6]} 28. Nf6 {[%clk 0:02:40.3]} 28... h5 {[%clk
0:02:26.5]} 29. b4 {[%clk 0:02:26]} 29... Ne6 {[%clk 0:02:03.3]} 30. Nd7+ {[%clk
0:02:22.5]} 30... Ke7 {[%clk 0:02:01.8]} 31. Nxb6 {[%clk 0:02:22.4]} 31... Nf4
{[%clk 0:01:59.3]} 32. g3 {[%clk 0:02:18.1]} 32... Ne6 {[%clk 0:01:58]} 33. c3
{[%clk 0:02:11.1]} 33... g5 {[%clk 0:01:54.3]} 34. a4 {[%clk 0:02:10]} 34...
bxa4 {[%clk 0:01:51.8]} 35. Nxa4 {[%clk 0:02:08.3]} 35... h4 {[%clk 0:01:46.4]}
36. Kd3 {[%clk 0:02:05.5]} 36... f5 {[%clk 0:01:42.4]} 37. c4 {[%clk 0:01:55.5]}
37... f4 {[%clk 0:01:33.6]} 38. gxh4 {[%clk 0:01:52]} 38... gxh4 {[%clk
0:01:29.4]} 39. Ke4 {[%clk 0:01:51.4]} 39... Kf6 {[%clk 0:01:25.8]} 40. Nc3
{[%clk 0:01:42.6]} 40... Kg5 {[%clk 0:01:18.9]} 41. h3 {[%clk 0:01:34.4]} 41...
Nc7 {[%clk 0:01:05]} 42. Ke5 {[%clk 0:01:27.2]} 42... Na6 {[%clk 0:01:02.8]} 43.
b5 {[%clk 0:01:22.8]} 43... cxb5 {[%clk 0:01:01.3]} 44. cxb5 {[%clk 0:01:21.6]}
44... Nc5 {[%clk 0:01:00.7]} 45. Ne4+ {[%clk 0:01:18.7]} 45... Nxe4 {[%clk
0:00:57.8]} 46. Kxe4 {[%clk 0:01:18.6]} 46... Kf6 {[%clk 0:00:55.8]} 47. Kxf4
{[%clk 0:01:16.8]} 1-0

[Event "Live Chess"]
[Site "Chess.com"]
[Date "2024.06.02"]
[Round "-"]
[White "Rusty_Bridges"]
[Black "KeithArkell"]
[Result "0-1"]
[WhiteElo "1479"]
[BlackElo "2411"]
[TimeControl "300"]
[EndTime "16:33:52 PDT"]
[Termination "KeithArkell won by resignation"]

1. e4 {[%clk 0:04:51.8]} 1... c6 {[%clk 0:04:59.1]} 2. Nf3 {[%clk 0:04:49.4]}
2... d5 {[%clk 0:04:59]} 3. exd5 {[%clk 0:04:48.1]} 3... cxd5 {[%clk 0:04:58]}
4. d4 {[%clk 0:04:47.6]} 4... Nf6 {[%clk 0:04:56.1]} 5. c3 {[%clk 0:04:46.5]}
5... Nc6 {[%clk 0:04:52.6]} 6. Bd3 {[%clk 0:04:44.9]} 6... Bg4 {[%clk
0:04:50.1]} 7. O-O {[%clk 0:04:37.9]} 7... e6 {[%clk 0:04:49]} 8. Qe1 {[%clk
0:04:36.3]} 8... Bxf3 {[%clk 0:04:47.4]} 9. gxf3 {[%clk 0:04:34.8]} 9... Bd6
{[%clk 0:04:46.5]} 10. Bg5 {[%clk 0:04:30.7]} 10... h6 {[%clk 0:04:44.9]} 11.
Bh4 {[%clk 0:04:29.3]} 11... g5 {[%clk 0:04:43]} 12. Bg3 {[%clk 0:04:28.3]}
12... Nh5 {[%clk 0:04:41.7]} 13. Nd2 {[%clk 0:04:19.2]} 13... Nf4 {[%clk
0:04:40.7]} 14. Bc2 {[%clk 0:04:07.5]} 14... h5 {[%clk 0:04:39.8]} 15. h4 {[%clk
0:04:00.9]} 15... gxh4 {[%clk 0:04:38.3]} 16. Bxf4 {[%clk 0:03:57.6]} 16... Bxf4
{[%clk 0:04:36.7]} 17. Kh1 {[%clk 0:03:55.4]} 17... Qg5 {[%clk 0:04:34.5]} 18.
Rg1 {[%clk 0:03:53.3]} 18... Bxd2 {[%clk 0:04:33.2]} 0-1

[Event "Live Chess"]
[Site "Chess.com"]
[Date "2024.06.02"]
[Round "-"]
[White "CarmelJane"]
[Black "Tushinskiy"]
[Result "1-0"]
[WhiteElo "2078"]
[BlackElo "2208"]
[TimeControl "300"]
[EndTime "16:33:55 PDT"]
[Termination "CarmelJane won by resignation"]

1. Nf3 {[%clk 0:04:57.2]} 1... d5 {[%clk 0:04:54.7]} 2. b3 {[%clk 0:04:56.5]}
2... c6 {[%clk 0:04:53.8]} 3. Bb2 {[%clk 0:04:55.8]} 3... Nf6 {[%clk 0:04:53.7]}
4. e3 {[%clk 0:04:54.6]} 4... Bf5 {[%clk 0:04:53]} 5. Be2 {[%clk 0:04:53.8]}
5... Bg6 {[%clk 0:04:52.9]} 6. d3 {[%clk 0:04:47.7]} 6... Nbd7 {[%clk
0:04:52.8]} 7. Nbd2 {[%clk 0:04:45.9]} 7... e6 {[%clk 0:04:52]} 8. a3 {[%clk
0:04:44.5]} 8... Bd6 {[%clk 0:04:51.4]} 9. O-O {[%clk 0:04:39.1]} 9... Qe7
{[%clk 0:04:50.6]} 10. c4 {[%clk 0:04:31.8]} 10... Kf8 {[%clk 0:04:37.9]} 11. b4
{[%clk 0:04:29.1]} 11... h5 {[%clk 0:04:36.4]} 12. c5 {[%clk 0:04:22.8]} 12...
Bc7 {[%clk 0:04:34.9]} 13. Nh4 {[%clk 0:04:22.3]} 13... Bh7 {[%clk 0:04:30.6]}
14. Nhf3 {[%clk 0:04:17.7]} 14... e5 {[%clk 0:04:21.5]} 15. Ng5 {[%clk
0:04:08.2]} 15... Bg6 {[%clk 0:04:18.6]} 16. Ndf3 {[%clk 0:04:05.5]} 16... e4
{[%clk 0:04:15]} 17. dxe4 {[%clk 0:04:03.6]} 17... dxe4 {[%clk 0:04:14.9]} 18.
Nh4 {[%clk 0:03:57]} 18... Ne5 {[%clk 0:04:13.1]} 19. Nxg6+ {[%clk 0:03:51.1]}
19... Nxg6 {[%clk 0:04:09.8]} 20. Bc4 {[%clk 0:03:50.7]} 20... Bxh2+ {[%clk
0:04:03.4]} 21. Kxh2 {[%clk 0:03:43]} 21... Ng4+ {[%clk 0:04:01.8]} 22. Kg1
{[%clk 0:03:39.4]} 22... Qxg5 {[%clk 0:04:00.6]} 23. Qd6+ {[%clk 0:03:23.6]}
23... Kg8 {[%clk 0:03:58.2]} 24. Rad1 {[%clk 0:03:14.6]} 24... h4 {[%clk
0:03:47.4]} 25. Qc7 {[%clk 0:03:13.5]} 25... Rf8 {[%clk 0:03:43.5]} 26. f4
{[%clk 0:02:55.3]} 26... exf3 {[%clk 0:03:37.6]} 27. Rxf3 {[%clk 0:02:54.7]}
27... Nxe3 {[%clk 0:03:24.1]} 28. Bxf7+ {[%clk 0:02:45]} 28... Kh7 {[%clk
0:03:22.7]} 29. Bxg6+ {[%clk 0:02:43]} 29... Qxg6 {[%clk 0:03:20.2]} 30. Rxe3
{[%clk 0:02:40.7]} 30... Rf7 {[%clk 0:03:17.8]} 31. Qh2 {[%clk 0:02:33.3]} 31...
Qg4 {[%clk 0:03:13.8]} 32. Rd4 {[%clk 0:02:23.9]} 32... Rhf8 {[%clk 0:03:12.6]}
33. Qxh4+ {[%clk 0:02:17.7]} 33... Qxh4 {[%clk 0:03:10.1]} 34. Rxh4+ {[%clk
0:02:17.6]} 34... Kg8 {[%clk 0:03:09.6]} 35. Reh3 {[%clk 0:02:16.3]} 35... Rf1+
{[%clk 0:03:07.9]} 36. Kh2 {[%clk 0:02:15.9]} 36... R8f2 {[%clk 0:03:06.6]} 37.
Be5 {[%clk 0:02:08.5]} 37... Re2 {[%clk 0:03:03.7]} 38. Bd6 {[%clk 0:02:04.9]}
38... Ra1 {[%clk 0:02:58.9]} 39. Rh8+ {[%clk 0:02:04.3]} 39... Kf7 {[%clk
0:02:58.1]} 40. Rf8+ {[%clk 0:02:03.6]} 40... Kg6 {[%clk 0:02:55]} 41. Rg3+
{[%clk 0:01:58.9]} 41... Kh7 {[%clk 0:02:52.6]} 42. Rf7 {[%clk 0:01:58.4]} 42...
Raa2 {[%clk 0:02:51.1]} 43. Rgxg7+ {[%clk 0:01:56.8]} 43... Kh6 {[%clk
0:02:49.8]} 44. Bf4+ {[%clk 0:01:52.3]} 44... Kh5 {[%clk 0:02:48.5]} 45. Rg5+
{[%clk 0:01:50.3]} 1-0

[Event "Live Chess"]
[Site "Chess.com"]
[Date "2024.06.02"]
[Round "-"]
[White "educatedlad"]
[Black "GEMdzq"]
[Result "0-1"]
[WhiteElo "1711"]
[BlackElo "2300"]
[TimeControl "300"]
[EndTime "16:34:33 PDT"]
[Termination "GEMdzq won by resignation"]

1. d4 {[%clk 0:04:59.3]} 1... Nf6 {[%clk 0:04:58.5]} 2. Bg5 {[%clk 0:04:56.5]}
2... c5 {[%clk 0:04:56.8]} 3. Bxf6 {[%clk 0:04:54.1]} 3... gxf6 {[%clk
0:04:56.7]} 4. d5 {[%clk 0:04:53.6]} 4... Qb6 {[%clk 0:04:55.6]} 5. Qc1 {[%clk
0:04:52.9]} 5... d6 {[%clk 0:04:54.5]} 6. c4 {[%clk 0:04:48]} 6... f5 {[%clk
0:04:50.8]} 7. Nc3 {[%clk 0:04:47]} 7... Bg7 {[%clk 0:04:49]} 8. e3 {[%clk
0:04:45.5]} 8... Bd7 {[%clk 0:04:43]} 9. Qc2 {[%clk 0:04:44.7]} 9... Na6 {[%clk
0:04:41.6]} 10. Bd3 {[%clk 0:04:42.1]} 10... Nb4 {[%clk 0:04:40.3]} 11. Qd1
{[%clk 0:04:29.5]} 11... Nxd3+ {[%clk 0:04:37.5]} 12. Qxd3 {[%clk 0:04:29.4]}
12... Qxb2 {[%clk 0:04:36.3]} 13. Rb1 {[%clk 0:04:14.4]} 13... Qxc3+ {[%clk
0:04:34.8]} 14. Qxc3 {[%clk 0:04:13.7]} 14... Bxc3+ {[%clk 0:04:34.1]} 0-1